bitfinex/quotes_ETHUSD_20250220
["timestamp","ask_amount","ask_price","bid_price","bid_amount"]
[1740092229050,12.28372398,2731.9,2731.8,0.4508]
[1740092230054,8.833198,2731.9,2731.8,0.4508]
[1740092230256,5.172748,2731.9,2731.8,0.4508]
[1740092230458,8.833198,2731.9,2731.8,0.4508]
[1740092230825,0.8097,2731.9,2731.8,0.4508]
[1740092231359,0.0075,2731.9,2731.8,4.11139]
[1740092231568,3.65986,2732.4,2731.8,0.4508]
[1740092231569,0.8201,2732.4,2731.8,0.4508]
[1740092231760,0.0075,2732.3,2732.2,3.66005]
[1740092232560,0.0075,2732.4,2732.3,3.65981]
[1740092232949,0.0075,2732.6,2732.3,3.65985]
[1740092233671,0.0075,2732.6,2732.5,3.65957]
[1740092233830,0.0075,2732.6,2732.5,3.65965]
[1740092234568,0.0075,2733.1,2732.8,3.65912]
[1740092234750,0.0075,2733.1,2733.0,3.65898]
[1740092234953,0.7671,2733.5,2733.2,3.65866]
[1740092235155,0.0075,2733.4,2733.2,3.65866]
[1740092235484,0.0075,2733.4,2733.3,3.65858]
[1740092235679,3.015,2733.7,2733.2,7.31729]
[1740092235962,0.015,2733.7,2733.2,3.65863]
[1740092236181,0.015,2733.7,2733.3,3.6585]
[1740092236326,0.015,2733.7,2733.0,0.80952]
[1740092236327,0.015,2733.7,2733.6,3.65817]
[1740092236529,0.015,2733.7,2733.4,3.65835]
[1740092236747,0.015,2733.7,2733.4,7.3167]
[1740092237172,0.015,2733.7,2733.5,3.65826]
[1740092237338,0.015,2733.7,2733.4,3.65835]
[1740092239354,0.015,2733.7,2733.3,0.26]
[1740092240168,0.015,2733.7,2733.4,3.65837]
[1740092240585,0.015,2733.7,2733.5,3.65823]
[1740092240737,3.7596,2734.1,2733.3,1.017729]
[1740092240938,0.0075,2734.0,2733.7,3.65799]
[1740092241831,0.0075,2734.0,2733.7,3.65793]
[1740092242034,0.015,2734.0,2733.8,3.65788]
[1740092242938,0.015,2734.0,2733.9,3.65777]
[1740092243137,0.0075,2734.3,2733.6,0.7976]
[1740092243333,0.0075,2734.3,2733.8,3.65791]
[1740092243691,3.015,2734.4,2734.0,3.65755]
[1740092244174,3.015,2734.4,2733.9,3.65777]
[1740092244175,8.304622,2734.4,2733.9,3.65777]
[1740092244671,0.0075,2734.3,2733.9,3.65777]
[1740092244860,0.0075,2734.3,2733.8,7.31563]
[1740092245058,0.0075,2734.3,2733.8,3.65781]
[1740092245273,0.0075,2734.3,2733.8,7.31561]
[1740092245641,0.0075,2734.3,2733.9,3.65773]
[1740092247379,3.66474,2734.3,2733.8,3.65791]
[1740092248048,0.0075,2734.3,2733.6,0.7976]
[1740092248249,0.0075,2734.3,2733.9,3.6577]
[1740092248472,3.66476,2734.3,2733.8,3.65779]
[1740092250308,0.0075,2734.3,2733.6,1.31581408]
[1740092250475,0.0075,2734.3,2734.1,3.6575]
[1740092250646,0.0075,2734.3,2734.1,3.65742]
[1740092250845,0.0075,2734.3,2733.9,3.65767]
[1740092251156,0.0075,2734.3,2734.1,3.6575]
[1740092251888,0.0075,2734.3,2733.9,7.31538]
[1740092252068,0.0075,2734.3,2734.0,3.65764]
[1740092252256,0.0075,2734.3,2733.9,7.31536]
[1740092252585,0.0075,2734.3,2733.9,7.31537]
[1740092252785,0.0075,2734.3,2733.9,3.65767]
[1740092254167,3.66474,2734.3,2733.9,3.65767]
[1740092254478,5.229668,2734.3,2733.8,3.6579]
[1740092255188,5.229668,2734.3,2733.9,3.65774]
[1740092255387,5.229668,2734.3,2733.8,3.6579]
[1740092255889,5.229668,2734.3,2733.8,3.65783]
[1740092257791,8.886998,2734.3,2733.8,3.65783]
[1740092257970,0.0075,2734.1,2733.8,3.65783]
[1740092260391,0.0075,2734.1,2733.8,7.31567]
[1740092260561,0.0075,2734.1,2733.8,3.65783]
[1740092261684,0.0075,2734.1,2733.9,3.65771]
[1740092262681,0.0075,2734.1,2733.9,7.31542]
[1740092262888,0.0075,2734.1,2733.9,3.65771]
[1740092263367,0.0075,2734.1,2733.9,3.6577]
[1740092264490,0.0075,2734.3,2734.0,3.65764]
[1740092264675,3.66462,2734.4,2734.0,3.65764]
[1740092265195,3.66462,2734.4,2733.9,3.65776]
[1740092265196,0.0075,2734.3,2733.9,3.65776]
[1740092265614,0.0075,2734.3,2733.9,7.31542]
[1740092266669,0.0075,2734.3,2733.9,3.65766]
[1740092266794,0.0075,2734.3,2733.9,7.31537]
[1740092267130,0.0075,2734.3,2733.8,0.259]
[1740092267279,0.0075,2734.3,2734.1,3.65748]
[1740092267720,0.015,2734.5,2733.9,3.6577]
[1740092268027,3.67203,2734.5,2734.0,3.65755]
[1740092268782,3.66453,2734.5,2734.0,3.65755]
[1740092268983,0.0075,2734.3,2733.9,3.6577]
[1740092269216,0.0075,2734.3,2733.9,7.31539]
[1740092272349,0.0075,2734.3,2733.9,7.57439]
[1740092274351,0.0075,2734.3,2733.9,3.91669]
[1740092274551,0.0075,2734.3,2734.0,3.65764]
[1740092274720,0.0075,2734.3,2733.9,3.91669]
[1740092275471,0.0075,2734.0,2733.9,0.259]
[1740092276438,0.0075,2734.0,2733.9,3.91677]
[1740092276637,0.0075,2734.0,2733.9,0.259]
[1740092278231,0.0075,2734.0,2733.9,3.91677]
[1740092278620,0.0075,2734.0,2733.9,0.259]
[1740092279043,0.0075,2734.0,2733.8,3.65783]
[1740092279272,0.0075,2734.0,2733.8,3.91683]
[1740092279773,0.0075,2734.0,2733.9,3.65777]
[1740092281047,0.0075,2734.0,2733.8,3.9169]
[1740092282868,0.0075,2734.0,2733.8,3.91682]
[1740092284258,0.0075,2734.0,2733.9,3.65777]
[1740092284706,0.0075,2734.0,2733.8,3.91688]
[1740092284998,0.0075,2734.0,2733.8,3.91682]
[1740092286891,0.0075,2734.0,2733.9,3.65777]
[1740092290628,0.0075,2734.0,2733.8,0.259]
[1740092290812,0.0075,2734.0,2733.8,3.91682]
[1740092291414,0.0075,2734.0,2733.9,3.65777]
[1740092293229,3.6573,2734.3,2733.9,3.65777]
[1740092293393,3.65658,2734.8,2733.9,1.52238]
[1740092293394,0.0075,2734.7,2733.9,1.52238]
[1740092293586,0.0075,2734.7,2734.4,3.65704]
[1740092293793,0.0075,2734.7,2734.3,3.65714]
[1740092294010,0.0075,2734.3,2734.1,3.65739]
[1740092294252,0.0075,2734.3,2734.0,3.65764]
[1740092295215,0.0075,2734.3,2734.0,7.31521]
[1740092295418,0.0075,2734.3,2734.1,3.65749]
[1740092295615,0.0075,2734.3,2734.0,7.31512]
[1740092295914,0.0075,2734.3,2733.8,3.65784]
[1740092295915,3.67228,2734.3,2733.8,3.65784]
[1740092296118,3.67228,2734.3,2733.8,7.57469]
[1740092296325,3.67228,2734.3,2733.8,3.91684]
[1740092296683,3.65737,2734.2,2733.8,3.91684]
[1740092296917,0.7554,2734.2,2733.8,3.91684]
[1740092298134,0.7554,2734.2,2733.8,3.65784]
[1740092298509,3.67252,2734.1,2733.6,3.6581]
[1740092298715,0.0075,2733.9,2733.6,3.9171]
[1740092299242,0.015,2733.9,2733.5,3.6583]
[1740092299540,0.7747,2733.8,2733.3,0.259]
[1740092300117,4.43267,2733.8,2733.3,0.259]
[1740092300396,4.43267,2733.8,2733.3,3.65851]
[1740092300934,0.015,2733.6,2733.2,3.65867]
[1740092301138,0.0075,2733.4,2733.2,3.65867]
[1740092302380,0.015,2733.2,2733.1,8.215]
[1740092302538,3.67371,2733.2,2733.1,8.215]
[1740092303030,0.015,2733.0,2732.6,3.65951]
[1740092303368,3.67398,2733.0,2732.5,4.66046248]
[1740092303573,0.0075,2732.7,2732.5,1.00081248]
[1740092304819,0.0075,2732.7,2732.5,4.66045248]
[1740092305176,0.0075,2732.7,2732.5,1.00081248]
[1740092306518,0.0075,2732.7,2732.5,4.66045248]
[1740092306922,0.0075,2732.7,2732.5,1.00081248]
[1740092307546,0.0075,2732.7,2732.5,4.66035248]
[1740092309060,0.0075,2732.7,2732.6,3.65951]
[1740092309262,0.0075,2732.7,2732.5,4.66035248]
[1740092309625,0.0075,2732.7,2732.5,8.31990248]
[1740092309963,0.7929,2733.1,2732.5,2.67890273]
[1740092310264,0.015,2733.1,2733.0,3.65898]
[1740092310778,0.0075,2733.1,2733.0,3.65898]
[1740092310925,0.0075,2733.1,2732.9,3.6591]
[1740092311122,0.0075,2733.1,2732.9,3.65903]
[1740092311325,0.0075,2733.1,2732.9,3.65901]
[1740092311521,0.0075,2733.2,2732.5,6.05427306]
[1740092311723,0.0075,2733.2,2732.9,3.6591]
[1740092311926,0.0075,2733.2,2733.0,3.65897]
[1740092312158,0.0075,2733.2,2732.9,3.6591]
[1740092312370,0.0075,2733.2,2732.9,7.31813]
[1740092312570,0.0075,2733.2,2733.0,3.65895]
[1740092312755,0.0075,2733.2,2732.9,3.65903]
[1740092312951,0.0075,2733.2,2733.1,3.65884]
[1740092313666,0.7854,2733.6,2733.0,0.8202]
[1740092313667,0.0075,2733.6,2733.0,0.8202]
[1740092313837,0.0075,2733.8,2733.5,3.65823]
[1740092314043,0.0075,2733.8,2733.5,0.8202]
[1740092314256,0.0075,2733.8,2733.7,3.65804]
[1740092314437,0.015,2734.0,2733.7,3.65804]
[1740092315047,0.015,2734.0,2733.8,3.6579]
[1740092315668,0.015,2734.0,2733.7,3.65802]
[1740092316231,0.015,2734.0,2733.8,3.65789]
[1740092317873,0.015,2734.0,2733.6,7.31619]
[1740092318167,0.015,2734.0,2733.6,8.129829]
[1740092318363,0.015,2734.0,2733.6,0.813639]
[1740092318562,0.015,2734.0,2733.8,7.31562]
[1740092318868,0.0075,2734.0,2733.8,3.6578]
[1740092319462,0.0075,2734.2,2733.9,3.65777]
[1740092319867,0.015,2734.2,2733.9,3.65777]
[1740092321257,0.015,2734.2,2733.8,3.65791]
[1740092323036,0.015,2734.2,2733.8,7.31575]
[1740092323239,0.015,2734.2,2733.8,4.389415]
[1740092323438,0.015,2734.2,2733.9,3.65776]
[1740092323868,0.015,2734.2,2733.8,3.65781]
[1740092325184,0.015,2734.2,2733.9,3.65768]
[1740092325573,0.015,2734.2,2733.5,0.8202]
[1740092325768,0.015,2734.2,2734.1,3.65751]
[1740092326166,0.015,2734.2,2734.0,3.65763]
[1740092326882,0.015,2734.2,2734.0,7.3152]
[1740092327091,0.8153,2734.5,2734.0,3.65757]
[1740092328392,0.0075,2734.2,2734.0,3.65757]
[1740092329494,0.0075,2734.2,2733.9,4.42137]
[1740092329852,0.0075,2734.2,2733.7,4.49062]
[1740092330057,0.0075,2734.2,2733.8,3.65784]
[1740092330256,0.0075,2734.0,2733.8,3.65784]
[1740092331770,0.0075,2734.0,2733.7,3.65802]
[1740092331975,0.0075,2734.0,2733.7,3.65794]
[1740092332394,0.0075,2734.0,2733.8,3.65789]
[1740092332588,0.0075,2734.0,2733.7,4.049714]
[1740092333087,0.0075,2734.0,2733.7,7.707704]
[1740092333281,0.0075,2734.0,2733.8,3.65789]
[1740092334603,0.0075,2734.0,2733.7,0.391694]
[1740092334903,0.0075,2734.0,2733.7,4.049714]
[1740092335205,0.0075,2734.0,2733.8,3.65789]
[1740092335693,0.0075,2734.0,2733.7,4.049724]
[1740092335893,0.0075,2734.0,2733.7,7.707704]
[1740092336206,0.0075,2734.0,2733.8,3.65789]
[1740092336604,0.0075,2734.0,2733.7,4.049674]
[1740092337103,0.0075,2734.0,2733.7,4.049644]
[1740092337505,0.0075,2734.0,2733.8,3.65787]
[1740092338003,0.0075,2734.0,2733.7,4.049644]
[1740092339103,0.0075,2734.0,2733.7,7.707614]
[1740092339402,0.0075,2734.0,2733.7,4.049644]
[1740092339607,0.0075,2734.0,2733.6,3.65815]
[1740092339906,0.0075,2733.7,2733.4,3.65838]
[1740092340107,0.0075,2733.7,2733.3,3.65849]
[1740092340108,0.015,2733.7,2733.3,3.65849]
[1740092340440,0.015,2733.7,2733.0,5.32]
[1740092340441,0.015,2733.5,2733.0,1.35815]
[1740092340711,0.0075,2733.1,2732.8,8.216]
[1740092340877,0.0075,2733.1,2732.8,13.12590373]
[1740092341475,0.015,2733.1,2732.8,8.216]
[1740092342602,3.67388,2733.1,2732.8,8.216]
[1740092346315,0.015,2733.1,2732.8,8.216]
[1740092348051,3.67393,2733.1,2732.8,8.216]
[1740092350835,7.33289,2733.1,2732.8,8.216]
[1740092351042,3.67393,2733.1,2732.8,8.216]
[1740092353238,3.67393,2733.1,2732.7,3.65934]
[1740092355607,0.0075,2732.9,2732.5,4.44338]
[1740092355912,3.66649,2733.0,2732.6,3.65945]
[1740092356318,0.0075,2733.0,2732.6,3.65945]
[1740092356841,0.0075,2733.0,2732.5,4.98824268]
[1740092357019,0.0075,2733.0,2732.6,3.65944]
[1740092357507,3.66649,2733.0,2732.6,3.65944]
[1740092358438,3.66649,2733.0,2732.5,1.32866268]
[1740092358631,0.8003,2732.8,2732.4,3.65968]
[1740092359228,0.0075,2732.7,2732.3,3.6599]
[1740092359538,0.0075,2732.6,2732.2,3.66004]
[1740092360234,0.0075,2732.6,2732.3,3.65989]
[1740092361621,0.0075,2732.6,2732.1,8.85490262]
[1740092362050,0.015,2732.2,2731.9,0.57301947]
[1740092362216,0.015,2732.2,2731.8,4.37032]
[1740092362416,0.015,2732.2,2731.8,6.078309]
[1740092362722,0.015,2732.2,2731.8,5.819309]
[1740092363321,0.0075,2732.2,2731.8,5.819309]
[1740092363521,0.0075,2732.3,2731.9,3.66035]
[1740092363722,0.0075,2732.3,2731.8,5.819309]
[1740092363923,0.0075,2732.3,2731.9,3.66036]
[1740092364743,0.0075,2732.2,2731.8,4.11138]
[1740092367730,3.67499,2732.3,2731.8,4.1113]
[1740092368065,3.67499,2732.3,2731.8,4.11129]
[1740092369419,0.0075,2732.3,2731.9,3.66037]
[1740092369582,0.0075,2732.2,2731.8,4.11135]
[1740092370652,0.0075,2732.2,2731.9,3.66043]
[1740092370957,0.0075,2732.3,2732.0,3.66025]
[1740092371326,0.0075,2732.3,2731.9,3.66037]
[1740092372227,0.0075,2732.3,2732.0,3.66032]
[1740092372639,0.0075,2732.3,2731.9,3.66045]
[1740092372875,0.0075,2732.3,2732.0,3.66025]
[1740092375433,0.0075,2732.3,2731.8,0.4508]
[1740092376480,0.0075,2732.3,2732.0,3.6603]
[1740092377964,0.0075,2732.3,2731.8,4.11135]
[1740092377965,0.0075,2732.3,2731.9,3.66044]
[1740092378132,0.0075,2732.3,2732.0,3.66024]
[1740092378832,0.0075,2732.3,2731.9,3.66034]
[1740092379337,0.0075,2732.3,2732.0,3.66029]
[1740092381682,0.0075,2732.3,2731.9,7.32073]
[1740092382181,0.0075,2732.3,2732.0,3.6603]
[1740092386058,0.0075,2732.2,2731.9,3.66034]
[1740092387459,0.0075,2732.3,2731.9,3.66032]
[1740092388073,3.66743,2732.3,2731.9,3.66032]
[1740092388265,0.0075,2732.2,2731.9,3.66032]
[1740092394267,0.0075,2732.3,2732.0,3.66031]
[1740092394474,0.0075,2732.3,2731.9,3.66032]
[1740092394663,0.0075,2732.2,2731.9,3.66032]
[1740092395604,0.0075,2732.0,2731.8,4.11131]
[1740092400014,0.0075,2732.0,2731.8,4.11138]
[1740092400171,0.015,2732.0,2731.8,0.4508]
[1740092400367,4.280999,2731.9,2731.8,0.4508]
[1740092400696,7.49225,2731.9,2731.8,0.4508]
[1740092400896,0.8318,2731.9,2731.8,0.4508]
[1740092401076,0.7594,2732.2,2731.8,0.4508]
[1740092401271,0.0075,2732.1,2731.9,4.41317]
[1740092401607,0.7594,2732.3,2731.8,0.4508]
[1740092401908,7.42595,2731.9,2731.8,0.4508]
[1740092402083,7.97595,2731.9,2731.8,0.4508]
[1740092402497,7.42595,2731.9,2731.8,0.4508]
[1740092402893,0.7655,2731.9,2731.8,0.4508]
[1740092403309,0.0075,2731.9,2731.8,0.4508]
[1740092403483,6.34576424,2731.9,2731.8,0.4508]
[1740092403677,9.10134476,2731.9,2731.8,0.4508]
[1740092403986,7.42755,2731.9,2731.8,0.4508]
[1740092404299,0.7671,2731.9,2731.8,0.4508]
[1740092404500,0.0075,2731.9,2731.8,4.11139]
[1740092404699,0.7521,2732.2,2731.8,5.665594]
[1740092405010,0.7598,2732.5,2732.1,3.66018]
[1740092405209,0.7598,2732.5,2732.0,3.66029]
[1740092405210,0.015,2732.4,2732.0,3.66025]
[1740092405511,0.0075,2732.4,2731.8,2.005004]
[1740092405716,1.67379476,2733.2,2732.4,0.814]
[1740092405899,0.015,2732.8,2732.4,0.814]
[1740092406816,0.0075,2732.6,2732.1,3.66011]
[1740092407108,0.0075,2732.6,2732.2,4.026051]
[1740092407511,0.015,2732.7,2732.3,3.65989]
[1740092407715,0.0075,2732.7,2732.5,0.8042]
[1740092407919,0.0075,2732.7,2732.6,0.446388]
[1740092408289,0.015,2732.9,2732.3,3.65989]
[1740092408483,0.015,2732.7,2732.2,1.170211]
[1740092408685,0.0075,2732.4,2732.2,0.366011]
[1740092409003,0.0075,2732.4,2732.0,3.9233]
[1740092409377,0.0075,2732.4,2732.0,3.6603]
[1740092409712,0.0075,2732.4,2731.9,4.43725]
[1740092409914,0.0075,2732.3,2731.9,3.66045]
[1740092410322,0.0075,2732.3,2731.9,3.66038]
[1740092410494,0.0075,2732.4,2732.0,4.097658]
[1740092410893,4.4235,2732.9,2732.2,0.8043]
[1740092411196,0.0075,2732.8,2732.3,3.65983]
[1740092411395,0.015,2732.8,2732.4,3.65971]
[1740092411996,7.45674,2733.3,2732.7,3.6593]
[1740092412221,7.45674,2733.3,2732.6,4.47074]
[1740092412222,0.0075,2733.1,2732.6,4.47074]
[1740092412408,0.015,2733.1,2732.7,3.65936]
[1740092413121,0.0075,2733.0,2732.6,0.8113]
[1740092413825,0.015,2733.2,2732.6,0.8113]
[1740092414021,0.0075,2733.0,2732.6,4.47073]
[1740092414325,0.0075,2733.0,2732.6,5.283774]
[1740092415598,0.0075,2733.1,2732.6,5.283774]
[1740092415891,3.66638,2733.1,2732.6,5.283774]
[1740092417924,0.0075,2733.1,2732.6,5.546774]
[1740092418087,3.66591,2733.5,2732.8,3.65921]
[1740092418289,0.015,2733.5,2733.0,3.65891]
[1740092418599,0.0075,2733.5,2733.2,3.6587]
[1740092418911,3.66554,2733.7,2733.2,3.6587]
[1740092419113,0.0075,2733.6,2733.3,0.36587]
[1740092420132,3.66554,2733.7,2733.3,0.36587]
[1740092421499,3.66588,2733.5,2733.0,4.4654]
[1740092421701,0.0075,2733.3,2732.8,3.65913]
[1740092422011,0.0075,2733.3,2732.4,3.65975]
[1740092422012,0.7761,2732.9,2732.5,3.65965]
[1740092422214,3.67436,2732.8,2732.2,3.65997]
[1740092422401,0.0075,2732.6,2732.2,0.7529888]
[1740092422607,0.0075,2732.7,2732.2,7.58296]
[1740092422803,0.0075,2732.7,2732.2,0.263]
[1740092423001,0.0075,2732.7,2732.5,3.65954]
[1740092423528,0.0075,2733.0,2732.7,3.65938]
[1740092423729,0.0075,2733.0,2732.7,0.8093]
[1740092423931,0.0075,2733.0,2732.9,3.65911]
[1740092424095,0.0075,2733.4,2733.1,3.65882]
[1740092424428,0.0075,2733.4,2733.2,3.65871]
[1740092424607,0.0075,2733.4,2733.1,3.65884]
[1740092425131,0.0075,2733.5,2733.1,3.65884]
[1740092425490,0.0075,2733.5,2733.1,3.65876]
[1740092425696,0.0075,2733.5,2733.1,4.1323926]
[1740092425898,0.015,2733.5,2733.0,0.264]
[1740092426230,0.0075,2733.2,2732.7,4.73258]
[1740092426533,3.66621,2733.2,2732.7,8.39188]
[1740092427101,3.66621,2733.2,2732.8,3.65924]
[1740092427447,3.66621,2733.2,2732.7,4.73256]
[1740092427941,0.0075,2733.2,2732.7,5.571774]
[1740092428119,0.0075,2733.2,2732.8,3.65924]
[1740092430070,0.0075,2733.2,2732.7,9.231074]
[1740092430514,0.0075,2733.2,2732.8,3.65922]
[1740092431111,0.0075,2733.2,2732.7,5.570774]
[1740092431340,3.66625,2733.2,2732.7,9.230084]
[1740092431844,3.66625,2733.2,2732.7,5.570774]
[1740092432040,0.0075,2733.2,2732.8,3.65918]
[1740092432342,0.0075,2733.2,2732.8,3.65916]
[1740092432508,0.015,2732.9,2732.4,4.41578]
[1740092432709,0.015,2732.7,2732.2,3.65997]
[1740092432927,0.0075,2732.5,2732.1,0.264]
[1740092433113,3.66723,2732.5,2732.1,0.264]
[1740092433323,0.0075,2732.1,2731.9,8.22]
[1740092433549,4.47495,2732.1,2731.9,8.22]
[1740092433909,0.0075,2732.0,2731.9,8.22]
[1740092434310,6.67532,2732.0,2731.9,8.22]
[1740092434521,7.789591,2732.0,2731.9,8.22]
[1740092435117,6.67532,2732.0,2731.9,8.22]
[1740092435816,3.015,2732.0,2731.9,8.22]
[1740092437057,0.015,2732.0,2731.9,8.22]
[1740092437483,0.0075,2732.0,2731.9,8.22]
[1740092437685,0.0075,2732.3,2732.0,3.6602]
[1740092437886,0.0075,2732.4,2732.1,4.84816]
[1740092438184,0.0075,2732.4,2732.1,5.59866]
[1740092438393,0.0075,2732.4,2732.2,3.66004]
[1740092438558,0.0075,2732.6,2732.2,3.66004]
[1740092438747,0.0075,2732.6,2732.3,3.65984]
[1740092438748,0.015,2732.6,2732.3,3.65984]
[1740092438953,0.0075,2732.6,2732.3,3.65984]
[1740092439249,0.0075,2732.7,2732.4,3.65975]
[1740092439455,0.0075,2732.7,2732.6,3.65951]
[1740092439870,0.0075,2733.2,2732.8,3.65923]
[1740092440156,0.0075,2733.2,2732.7,3.65936]
[1740092440464,0.015,2733.2,2732.7,7.31867]
[1740092440665,0.015,2733.2,2732.9,3.65905]
[1740092441077,0.015,2733.2,2732.9,3.659]
[1740092441401,0.015,2733.2,2732.9,7.318]
[1740092441699,0.015,2733.2,2732.9,3.659]
[1740092442200,0.015,2733.2,2733.0,3.65898]
[1740092442505,0.015,2733.3,2732.9,3.659]
[1740092442702,0.015,2733.3,2733.1,3.6588]
[1740092442930,0.0075,2733.5,2733.1,7.31757]
[1740092443085,0.0075,2733.5,2733.1,3.65877]
[1740092443278,0.0075,2733.5,2733.2,3.65867]
[1740092443603,0.015,2733.8,2733.3,3.65853]
[1740092443803,0.015,2733.8,2733.4,3.65833]
[1740092444100,0.0075,2733.8,2733.5,3.65826]
[1740092444529,0.0075,2734.1,2733.6,3.65815]
[1740092444804,3.015,2734.1,2733.6,3.65815]
[1740092445007,6.67256,2734.1,2733.6,3.65815]
[1740092445384,6.67256,2734.1,2733.4,3.65832]
[1740092445569,3.65764,2734.0,2733.6,3.65817]
[1740092446004,3.015,2734.1,2733.6,3.65817]
[1740092446168,3.65767,2734.0,2733.4,3.65832]
[1740092446371,3.65767,2734.0,2733.4,4.1370973]
[1740092446569,3.65767,2734.0,2733.5,3.65824]
[1740092447084,6.67255,2734.1,2733.6,3.65813]
[1740092447697,6.67252,2734.1,2733.6,3.65813]
[1740092447892,3.65765,2734.0,2733.5,3.65827]
[1740092448398,6.67254,2734.1,2733.6,3.65817]
[1740092448815,3.65764,2734.0,2733.5,4.51420173]
[1740092449011,0.0075,2733.7,2733.3,4.42215]
[1740092449325,3.66556,2733.7,2733.1,3.65871]
[1740092449671,3.66556,2733.7,2733.3,3.65855]
[1740092449975,3.66556,2733.7,2733.2,3.65863]
[1740092450189,3.66556,2733.7,2733.3,0.731734]
[1740092450397,0.015,2733.8,2733.3,0.731734]
[1740092450701,0.015,2733.8,2733.0,1.0522]
[1740092450702,0.0075,2733.6,2733.2,3.6587]
[1740092451623,3.66568,2733.6,2733.2,3.9227]
[1740092451770,3.66568,2733.6,2733.2,3.6587]
[1740092451970,0.8032,2733.6,2733.2,3.9227]
[1740092452400,0.8032,2733.6,2733.2,4.759617]
[1740092452600,0.8032,2733.6,2733.2,8.418237]
[1740092452800,0.8032,2733.6,2733.2,8.418227]
[1740092453001,0.0075,2733.6,2733.2,4.759607]
[1740092453506,0.0075,2733.6,2733.2,4.759637]
[1740092453879,3.66568,2733.6,2733.2,4.759637]
[1740092455017,3.66568,2733.6,2733.2,3.92265]
[1740092456181,3.66568,2733.6,2733.0,4.44708]
[1740092456382,0.7916,2733.3,2733.0,0.264]
[1740092457110,0.7916,2733.3,2733.0,3.92297]
[1740092457318,0.7916,2733.3,2733.0,5.503081]
[1740092457616,0.7916,2733.3,2733.0,5.239021]
[1740092457817,0.7999,2733.6,2733.0,5.239021]
[1740092458019,0.7999,2733.6,2733.3,3.65849]
[1740092458388,0.7999,2733.6,2733.2,3.6586]
[1740092458602,4.45809,2733.6,2733.2,3.6586]
[1740092459486,0.7999,2733.6,2733.0,1.580111]
[1740092459702,0.015,2733.8,2733.4,3.65836]
[1740092459902,3.015,2733.8,2733.4,3.65836]
[1740092460331,0.0075,2733.6,2733.2,7.3173]
[1740092460532,3.66568,2733.6,2733.1,0.7553]
[1740092460838,3.66568,2733.6,2733.2,3.65869]
[1740092461420,0.0075,2733.6,2733.2,3.65869]
[1740092461618,0.0075,2733.6,2733.3,3.65853]
[1740092462142,0.0075,2733.6,2733.2,3.6587]
[1740092462646,0.0075,2733.6,2733.3,3.65857]
[1740092462807,0.0075,2733.6,2733.2,3.65869]
[1740092463338,0.0075,2733.6,2733.3,3.65853]
[1740092463705,0.0075,2733.6,2733.4,3.65836]
[1740092463908,0.015,2733.8,2733.3,3.65853]
[1740092464218,0.015,2733.8,2733.4,3.65844]
[1740092464421,3.67292,2733.8,2733.4,3.65844]
[1740092464724,0.015,2733.8,2733.5,3.6583]
[1740092465103,0.0075,2733.8,2733.1,3.65884]
[1740092465304,0.0075,2734.0,2733.5,0.7853]
[1740092465517,0.015,2734.0,2733.7,3.658]
[1740092465838,3.67264,2734.0,2733.6,3.65817]
[1740092466430,0.0075,2734.0,2733.7,3.65804]
[1740092466630,0.0075,2734.0,2733.8,3.6579]
[1740092466829,0.0075,2734.2,2733.8,4.389374]
[1740092467149,0.0075,2734.3,2734.1,3.6575]
[1740092467835,0.7785,2734.4,2734.1,3.6575]
[1740092468439,0.7785,2734.4,2734.0,0.7714]
[1740092468639,0.7785,2734.4,2734.0,4.429]
[1740092468834,0.7785,2734.4,2734.0,5.02505761]
[1740092469436,3.0075,2734.6,2734.1,3.65749]
[1740092469437,0.786,2734.6,2734.1,3.65749]
[1740092469941,4.44294,2734.6,2734.1,3.65749]
[1740092470121,4.43544,2734.6,2734.1,3.65749]
[1740092470319,3.66447,2734.5,2734.1,3.65749]
[1740092470512,0.0075,2734.5,2734.1,4.52575376]
[1740092470974,3.66447,2734.5,2734.1,4.52575376]
[1740092473665,3.65697,2734.5,2734.1,4.52575376]
[1740092474160,0.0075,2734.5,2734.1,8.18317376]
[1740092474359,3.65632,2735.0,2734.2,3.65737]
[1740092474360,0.7879,2735.0,2734.2,3.65737]
[1740092474563,0.7879,2735.0,2734.1,0.86826376]
[1740092474564,0.0075,2734.9,2734.8,3.65657]
[1740092475182,3.45148447,2735.7,2734.9,3.65644]
[1740092475362,0.0075,2735.5,2735.1,3.65607]
[1740092475748,3.015,2735.5,2735.1,3.65607]
[1740092475953,0.015,2735.5,2735.1,3.65607]
[1740092476486,0.0075,2735.5,2735.0,3.6563]
[1740092476685,0.0075,2735.5,2735.1,0.36563]
[1740092476871,3.66318,2735.5,2735.1,0.36563]
[1740092477073,3.66343,2735.3,2734.8,3.65649]
[1740092477685,7.31944,2735.3,2734.8,3.65649]
[1740092477982,0.0075,2735.1,2734.8,3.65649]
[1740092478355,0.0075,2734.9,2734.5,0.263]
[1740092478566,3.66398,2734.9,2734.5,0.263]
[1740092479007,3.66398,2734.9,2734.4,3.92001]
[1740092479159,3.66398,2734.9,2734.4,4.80066534]
[1740092479351,3.65659,2734.8,2734.4,3.92001]